Cogmind - Beta 12 @@@ ROGUE MODE // 2023.06.16 @ 07:33:33 Player: Bil Tuesday Result: Destroyed by D-53 Grenadier with Mini Grenade Launcher Performance ------------- Evolutions (0) 0 Regions Visited (2) 400 Robots Destroyed (5) 25 Value Destroyed (47) 47 Prototype IDs (0) 0 Alien Tech Used (0) 0 Bonus (0) 0 TOTAL SCORE: 472 Bonus ------- None Cogmind --------- Core Integrity 0/250 Matter 252/300 Energy 53/250 System Corruption 1% Temperature Cool (2) Movement Treading (160) Location -10/Mines Parts ------- > --- POWER (1) -------- Ion Engine > --- PROPULSION (2) --- Light Treads Light Treads > --- UTILITY (2) ------ Large Storage Unit ECM Suite > --- WEAPON (2) ------- Small Laser > --- INVENTORY (15) --- Large Storage Unit High-capacity Matter Pod (200) EM Pulse Gun EM Pulse Gun Light Assault Rifle Grenade Launcher Grenade Launcher Datajack Welding Torch Peak State ------------ > --- POWER ------------ Ion Engine > --- PROPULSION ------- Aluminum Leg Aluminum Leg > --- UTILITY ---------- Large Storage Unit ECM Suite > --- WEAPON ----------- Beam Rifle Beam Rifle > --- INVENTORY -------- Ion Engine Light Treads Light Treads Large Storage Unit High-capacity Matter Pod EM Pulse Gun EM Pulse Gun Small Laser Light Assault Rifle Grenade Launcher Grenade Launcher Datajack Welding Torch [Rating: 10] Favorites ----------- Power Ion Engine Engine Ion Engine Propulsion Aluminum Leg Treads Light Treads Leg Aluminum Leg Utility Large Storage Unit Device ECM Suite Storage Large Storage Unit Weapon Datajack Energy Gun Small Laser Ballistic Gun Light Assault Rifle Special Melee Weapon Datajack Build | -11 -10 -10 ------- Run | Jun Mat Min Slots Evolved . | . . . Power . | . . . Propulsion . | . . . Utility . | . . . Weapon . | . . . Parts Attached 15 | 6 3 6 Power 2 | 1 . 1 Engine 2 | 1 . 1 Core . | . . . Reactor . | . . . Propulsion 4 | 2 . 2 Treads 2 | . . 2 Leg 2 | 2 . . Wheel . | . . . Hover . | . . . Flight . | . . . Utility 3 | 1 2 . Device 1 | . 1 . Storage 2 | 1 1 . Processor . | . . . Hackware . | . . . Protection . | . . . Artifact . | . . . Weapon 6 | 2 1 3 Energy Gun 4 | 1 . 3 Energy Cannon . | . . . Ballistic Gun 1 | 1 . . Ballistic Cannon . | . . . Launcher . | . . . Special Weapon . | . . . Impact Weapon . | . . . Slashing Weapon . | . . . Piercing Weapon . | . . . Special Melee Weapon 1 | . 1 . Unidentified Prototypes . | . . . Parts Lost 5 | . . 5 Power 1 | . . 1 Propulsion 2 | . . 2 Utility . | . . . Weapon 2 | . . 2 Highest Loss Streak 5 | . . 5 To Critical Strikes . | . . . Average Slot Usage (%) 89 | . 92 86 Engine 13 | . 14 13 Leg 26 | . 28 25 Device 12 | . 11 14 Storage 14 | . 15 14 Energy Gun 6 | . 7 6 Ballistic Gun 3 | . 7 . Special Melee Weapon 8 | . 6 10 Naked Turns . | . . . Heaviest Build 33 | 12 32 33 Greatest Support 40 | 20 20 40 Greatest Overweight (x) 3 | 3 1 3 Average Overweight (x) . | . . . Largest Inventory Capacity 15 | 8 15 15 Average Capacity 13 | 7 14 15 Most Carried 14 | 4 14 14 Average Carried 10 | 3 9 13 Final Capacity 15 | 8 15 15 Final Carried 14 | 4 14 9 Class Distribution -------------------- 100% | Mutant Dominant Class ---------------- Mutant | -10/Materials Mutant | -10/Mines Resources | -11 -10 -10 ----------- Run | Jun Mat Min Matter Collected 537 | 231 18 288 Remotely . | . . . Salvage Created 159 | 56 18 85 Parts 15 | 2 3 10 Haulers Intercepted . | . . . Recyclers Shooed . | . . . Parts Field Recycled . | . . . Retrieved Matter . | . . . Parts Self-Destructed . | . . . Prevented . | . . . Kills | -11 -10 -10 ------- Run | Jun Mat Min Combat Hostiles Destroyed 5 | . . 5 Guns 5 | . . 5 Classes Destroyed 5 | 1 1 3 Builder 1 | . . 1 Recycler 1 | 1 . . Watcher 1 | . 1 . Swarmer 2 | . . 2 Assembled 3 | . . 3 Best Kill Streak 3 | 1 1 3 Combat Bots Only 3 | . . 3 Max Kills in Single Turn 1 | 1 1 1 Gunslinging . | . . . Exploded . | . . . Melee . | . . . Uniques/NPCs Destroyed . | . . . Combat | -11 -10 -10 -------- Run | Jun Mat Min Damage Taken 961 | . . 961 Core 261 | . . 261 Absorbed by Shields . | . . . Core Remaining (%) 100 | 100 . . Volleys Fired 21 | 4 6 11 Largest 2 | 2 2 2 Hottest 112 | 60 60 112 Shots Fired 42 | 8 12 22 Gun 42 | 8 12 22 Cannon . | . . . Launcher . | . . . Special . | . . . Kinetic 10 | 4 6 . Thermal 32 | 4 6 22 Explosive . | . . . Electromagnetic . | . . . Robot Hit Streak 8 | 4 4 8 Robot Miss Streak 3 | 1 3 2 Penetration Max . | . . . Secondary Targets 2 | . . 2 Max Gunslinging Chain 1 | . . 1 Shots Hit Robots 42 | 6 13 23 Core Hits 14 | 2 3 9 Critical Kills . | . . . Critical Parts Destroyed . | . . . Critical Strikes . | . . . Melee Attacks 14 | . 6 8 Impact . | . . . Slashing . | . . . Piercing . | . . . Sneak Attacks 14 | . 6 8 Combat Hostiles . | . . . Follow-up Attacks . | . . . Damage Inflicted 346 | 57 70 219 Guns 346 | 57 70 219 Cannons . | . . . Explosions . | . . . Melee . | . . . Ramming . | . . . Kinetic 60 | 25 35 . Thermal 286 | 32 35 219 Explosive . | . . . Electromagnetic . | . . . Impact . | . . . Slashing . | . . . Piercing . | . . . Highest Corruption 1 | . . 1 Average Corruption 1 | . . 1 Corruption Purged . | . . . Corruption Blocked . | . . . Effects 4 | . . 4 Matter Fused 3 | . . 3 Data Loss (minor) 1 | . . 1 Overload Shots . | . . . Overflow Damage . | . . . Projectiles . | . . . Explosions . | . . . Melee . | . . . Knockbacks . | . . . Impact . | . . . Kinetic . | . . . Secondary . | . . . Self-Inflicted Damage . | . . . Shots . | . . . Rammed . | . . . Targets Rammed . | . . . Kicked . | . . . Crushed . | . . . Highest Temperature 352 | 40 20 352 Average Temperature 118 | 25 14 159 Received Heat Transfer 20 | . . 20 Effects 1 | . . 1 Shutdowns 1 | . . 1 Siege Activations . | . . . Robots Corrupted . | . . . Combat Hostiles . | . . . Parts Fried . | . . . Impact Corruptions . | . . . Robots Melted . | . . . Combat Hostiles . | . . . Parts Melted . | . . . Heat Transferred 705 | 75 75 555 Parts Sabotaged . | . . . Parts Stolen . | . . . Parts Stripped . | . . . Power Chain Reactions . | . . . Missiles Intercepted . | . . . Alert | -11 -10 -10 ------- Run | Jun Mat Min Peak Influence 63 | 5 10 63 Initial 3 | . 3 3 Average 10 | 1 8 15 Maximum Alert Level . | . . . Low Security (%) 100 | 100 100 100 Level 1 . | . . . Level 2 . | . . . Level 3 . | . . . Level 4 . | . . . Level 5 . | . . . High Security . | . . . Max Security . | . . . Squads Dispatched 1 | . 1 . Investigation 1 | . 1 . Extermination . | . . . Reinforcement . | . . . Assault . | . . . Garrison . | . . . Intercept . | . . . Searches Triggered . | . . . Construction Impeded . | . . . Haulers Reinforced . | . . . Active Scanning Responses . | . . . Cargo Convoy Interrupts . | . . . Stealth | -11 -10 -10 --------- Run | Jun Mat Min Distress Signals . | . . . Communications Jammed . | . . . Distress Signals . | . . . Times Spotted 14 | . 1 13 Peak Tracking Total 5 | . 1 5 Tactical Retreats 2 | . . 2 Traps | -11 -10 -10 ------- Run | Jun Mat Min Traps Triggered 1 | . 1 . Indirectly . | . . . Trap Hack Attempts . | . . . Triggered . | . . . Disarmed . | . . . Reprogrammed . | . . . Reused . | . . . Traps Extracted . | . . . Installed . | . . . Triggered . | . . . Machines | -11 -10 -10 ---------- Run | Jun Mat Min Machines Disabled . | . . . Max in Single Turn . | . . . Machines Repaired . | . . . Machines Sabotaged . | . . . Overloaded Fab Kills . | . . . Hacking | -11 -10 -10 --------- Run | Jun Mat Min Machines Accessed 1 | . . 1 Terminals . | . . . Fabricators . | . . . Repair Stations . | . . . Recycling Units . | . . . Scanalyzers . | . . . Garrison Access . | . . . Total Hacks 1 | . . 1 Successful 1 | . . 1 Failed . | . . . Catastrophic . | . . . Database Lockouts . | . . . Manual . | . . . Terminals . | . . . Fabricators . | . . . Repair Stations . | . . . Recycling Units . | . . . Scanalyzers . | . . . Garrison Access . | . . . Terminal Hacks 1 | . . 1 Open Door 1 | . . 1 Fabricator Hacks . | . . . Repair Station Hacks . | . . . Recycling Unit Hacks . | . . . Scanalyzer . | . . . Garrison Access Hacks . | . . . Unauthorized Hacks . | . . . Terminals . | . . . Fabricators . | . . . Repair Stations . | . . . Recycling Units . | . . . Scanalyzers . | . . . Garrison Access . | . . . Data Cores Recovered . | . . . Used . | . . . Hacking Detections . | . . . Full Trace Events . | . . . Feedback Events . | . . . Feedback Blocked . | . . . Robot Schematics Acquired . | . . . Robots Built . | . . . Authchips . | . . . Time . | . . . Total Robot Build Rating . | . . . Part Schematics Acquired . | . . . Parts Built . | . . . Authchips . | . . . Time . | . . . Total Part Build Rating . | . . . Parts Repaired . | . . . Time . | . . . Parts Recycled . | . . . Recycled Matter . | . . . Retrieved Matter . | . . . Retrieved Components . | . . . Parts Scanalyzed . | . . . Part Schematics Acquired . | . . . Parts Damaged . | . . . Bothacking | -11 -10 -10 ------------ Run | Jun Mat Min Used RIF Installer . | . . . Robots Hacked 7 | . 2 5 Non-combat 7 | . 2 5 Combat . | . . . Robot Hacks Applied 14 | . 6 8 parse_system 1 | . 1 . no_distress 13 | . 5 8 Relay Couplers Released . | . . . Fabnet Peak Effective % . | . . . Robots Rewired . | . . . Allies Hacked . | . . . Hacks Repelled . | . . . Allies | -11 -10 -10 -------- Run | Jun Mat Min Total Allies . | . . . Largest Group . | . . . Highest-Rated Group . | . . . Highest-Rated Ally . | . . . Total Orders . | . . . Ally Attacks . | . . . Total Damage . | . . . Kills . | . . . Allies Corrupted . | . . . Allies Melted . | . . . Intel | -11 -10 -10 ------- Run | Jun Mat Min Robot Analysis Total . | . . . Derelict Logs Recovered 1 | . . 1 Drone Launches . | . . . Drone Recoveries . | . . . Exploration | -11 -10 -10 ------------- Run | Jun Mat Min Turns Passed 861 | 114 364 383 Spaces Moved 397 | 65 166 166 Core 7 | 7 . . Treads 11 | . . 11 Legs 379 | 58 166 155 Wheels . | . . . Hover . | . . . Flight . | . . . Fastest Speed 50 | 50 120 160 Average Speed 178 | 123 187 190 Slowest Speed 330 | 200 190 330 Overloaded Moves . | . . . Propulsion Burnouts . | . . . Robots Hopped . | . . . Cave-ins Triggered . | . . . Exploration Rate (%) 22 | 4 33 29 Regions Visited 2 Branch Regions 1 Pre-discovered Areas 1 | . . 1 Known Exits Taken . | . . . Unknown Exits Taken 2 | 1 1 . Scrap Searched . | . . . Spaces Dug . | . . . Terrain Destroyed . | . . . Melee . | . . . Projectile . | . . . AOE . | . . . Terrain Rammed . | . . . Walls Destroyed . | . . . Machines Disabled . | . . . Actions | -11 -10 -10 --------- Run | Jun Mat Min Total 503 | 91 205 207 Wait 33 | 7 10 16 Move 395 | 64 165 166 Hop . | . . . Pick Up 22 | 10 12 . Fast Attach . | . . . Attach 12 | 6 1 5 Detach 1 | . 1 . Swap 3 | . 2 1 Drop 2 | . 2 . Fire 21 | 4 6 11 Melee 14 | . 6 8 Ram . | . . . Kick . | . . . Crush . | . . . Escape Stasis . | . . . Rewire . | . . . Trap . | . . . Miscellaneous . | . . . Route ------- -11/Junkyard -10/Materials -10/Mines History --------- Turn | Location | Event 14 | -11/Junkyard | Discovered new exit (range 16) 115 | -11/Junkyard | Entered Materials 163 | -10/Materials | Discovered new exit (range 16) 328 | -10/Materials | Build established: Mutant 479 | -10/Materials | Entered Mines 578 | -10/Mines | Learned location of Storage (-8) 699 | -10/Mines | Met a Derelict who couldn't figure out how to use a Trap Extractor 751 | -10/Mines | Assembled infested the area 842 | -10/Mines | Core integrity fell below 50% 858 | -10/Mines | Core integrity fell below 20% 862 | -10/Mines | Destroyed by D-53 Grenadier with Mini Grenade Launcher Last Messages --------------- 00834_ K-01 Serf collects debris. 00835_ as-53174 destroyed. 00835_ K-01 Serf destroyed. 00836_ Beam Rifle destroyed. 00836_ as-43672 destroyed. 00837_ The unstable cave ceiling collapses. 00840_ Aluminum Leg destroyed. 00840_ U-05 Engineer builds a Wall. 00841_ The unstable cave ceiling collapses. 00842_ U-05 Engineer destroyed. 00843_ The unstable cave ceiling collapses. 00851_ System corrupted: Matter fused (-8). 00851_ The unstable cave ceiling collapses. 00854_ U-05 Engineer lays Concrete. 00857_ The unstable cave ceiling collapses. 00857_ U-05 Engineer lays Concrete. 00860_ The unstable cave ceiling collapses. 00860_ U-05 Engineer lays Concrete. 00861_ The unstable cave ceiling collapses. 00861_ U-05 Engineer lays Concrete. Map ----- +----------------------------------------------------+ | ???????????????????????????????????????????# #??? | | ?????????????????????????????????????????### #??? | | ????????????????????????????????????????## #??? | | ???????????????????????????????????????## #??? | | ????????????????????????????????????#### ##?? | | ???????????????????????????????????## #?? | | ??????????????????????????????????## """ #?? | | ?????????????????????????????????## """ ##?? | | ????###??????????????????????????# """ ###??? | | ???## ?????????????????????????# ##????? | | ???# ????????????????????????# #### ##?????? | | #?# ????????????????????????## ##### #??????? | | ?# =?????????????????????????###?# #??????? | | ?# %#??######????????????????????# ####??????? | | # | ### ###?????????????????## ####??????? | | %*%= % ##?????????######## #??????? | | # #?????????# #??????? | | # # ## ##????????# #??????? | | ??# #????????# ###### #??????? | | ??# # # ##### #??# #????# #??????? | | ?????# d #### #????# #??????? | | ????# # ####### ############??????? | | ????## # # ### #?????????????? | | ??# # = #### #?????????????? | | ??#$##### # d u #??????????????????? | | ??#?????######### @ #??????????????????? | | ??????????????## ## #??????????????????? | | ???????###??### ## #??????????????????? | | ???????# ]### ##### #??????????????????? | | ???????# = *# #??# #??????????????????? | | ???????# !^ # #?# ??????????????????? | | ???????# /! # #?## ??????????????????? | | ???????# ! !# #??? ??????????????????? | | ???????# !### ##??? #?????????????????? | | ???????###??### ###???? ?????????????????? | | ??????????????## ##??????##?????????????????? | | ???????????????## #??????????????????????????? | | ????????????????## #??????????????????????????? | | ?????????????????## ##??????????????????????????? | | ??????????????????####???????????????????????????? | | ?????????????????????????????????????????????????? | | ?????????????????????????????????????????????????? | | ?????????????????????????????????????????????????? | | ?????????????????????????????????????????????????? | | ?????????????????????????????????????????????????? | | ?????????????????????????????????????????????????? | | ?????????????????????????????????????????????????? | | ?????????????????????????????????????????????????? | | ?????????????????????????????????????????????????? | | ?????????????????????????????????????????????????? | +----------------------------------------------------+ Best States ------------- Heat Dissipation 25 Energy Generation 10 Energy Capacity 250 Matter Stores 300 Matter Capacity 300 Sight Range 16 Terrain Scan Density 10 ECM Strength 1 Evasion (%) 55 Recoil Reduction 2 Item Schematics ----------------- None Robot Schematics ------------------ None Fabricated ------------ Nothing Alien Tech Used ----------------- None Achievements -------------- None Challenges ------------ None Game ------ Seed BiocellChainCannon Manual? 0 Play Time 00:14:23 Cumulative 6.0 hours Start 2023.06.16 @ 07:21:33 End 2023.06.16 @ 07:33:33 Sessions 1 Manual Loads 0 Difficulty Rogue Special Mode None Game No. 7 Rogue 7 Adventurer 0 Explorer 0 Win Type - Total 0 Types 0/0/0/0/0/0/0/0/0 Lore% 12 Gallery% 10 Achievement% 8 Wizard Run 0 Options --------- ASCII 0 Keyboard 0 Movement Mouse Keybinds 0 Fullscreen 0 Font 18/SmallcapsGlow Map View 66x50 Tactical HUD 1 Map Filters NONE Filters NONE Steam 1 RUN: ac6bc885-cd36-4dab-acf6-8727ee09cff3